[Event "48th Indian U15-ch Girls 2023"]
[Site "Jalgaon"]
[Date "2023.12.28"]
[Round "3.5"]
[White "Kumari Prasad Jagriti"]
[Black "Arshiya Das"]
[Result "1-0"]
[WhiteElo "1506"]
[BlackElo "1729"]
[PlyCount "143"]
[EventDate "2023.12.30"]
[EventType "swiss"]
[EventCountry "IND"]
[TimeControl "5400+30"]

1. e4 {[%emt 0:00:04]} g6 {[%emt 0:00:07]} 2. d4 {[%emt 0:00:08]} Bg7 {[%emt 0:00:03]} 3. Nf3 {[%emt 0:00:12]} d6 {[%emt 0:00:06]} 4. Bc4 {[%emt 0:00:27]} Nf6 {[%emt 0:00:30]} 5. Nc3 {[%emt 0:00:43]} O-O {[%emt 0:00:23]} 6. O-O {[%emt 0:00:14]} Bg4 {[%emt 0:01:34]} 7. h3 {[%emt 0:00:34]} Bxf3 {[%emt 0:00:03]} 8. Qxf3 {[%emt 0:00:06]} Nc6 {[%emt 0:00:03]} 9. Be3 {[%emt 0:00:29]} e5 {[%emt 0:00:32]} 10. d5 {[%emt 0:01:10]} Ne7 {[%emt 0:05:38]} 11. a4 {[%emt 0:07:16]} Nd7 {[%emt 0:02:01]} 12. Qe2 {[%emt 0:01:59]} f5 {[%emt 0:01:23]} 13. f3 {[%emt 0:01:00]} f4 {[%emt 0:01:15]} 14. Bf2 {[%emt 0:00:14]} g5 {[%emt 0:01:29]} 15. a5 {[%emt 0:04:45]} Ng6 {[%emt 0:02:16]} 16. a6 {[%emt 0:07:11]} b6 {[%emt 0:00:53]} 17. Bb5 {[%emt 0:00:55]} Ne7 {[%emt 0:02:02]} 18. b4 {[%emt 0:07:16]} Kh8 {[%emt 0:01:20]} 19. Ba4 {[%emt 0:06:07]} Nb8 {[%emt 0:01:42]} 20. Rfd1 {[%emt 0:17:08]} Qc8 {[%emt 0:01:42]} 21. Bb3 {[%emt 0:03:48]} Ng8 {[%emt 0:06:35]} 22. b5 {[%emt 0:05:40]} Nd7 {[%emt 0:01:58]} 23. Na2 {[%emt 0:05:02]} Ndf6 {[%emt 0:02:24]} 24. Nb4 {[%emt 0:06:16]} Ne7 {[%emt 0:01:25]} 25. Rd3 {[%emt 0:04:16]} Qd7 {[%emt 0:03:42]} 26. Nc6 {[%emt 0:02:06]} Ng6 {[%emt 0:01:49]} 27. c3 {[%emt 0:03:52]} Rg8 {[%emt 0:00:52]} 28. Bd1 {[%emt 0:01:16]} Nh5 {[%emt 0:02:29]} 29. Qe1 {[%emt 0:03:17]} Bf6 {[%emt 0:00:25]} 30. Ra2 {[%emt 0:01:18]} Ng7 {[%emt 0:01:21]} 31. c4 {[%emt 0:00:56]} h6 {[%emt 0:02:35]} 32. Rad2 {[%emt 0:00:44]} Kh7 {[%emt 0:00:19]} 33. Ba4 {[%emt 0:00:47]} Qf7 {[%emt 0:00:43]} 34. Bb3 {[%emt 0:01:02]} Qe8 {[%emt 0:00:57]} 35. Qd1 {[%emt 0:01:28]} Nf8 {[%emt 0:00:33]} 36. Ba4 {[%emt 0:01:20]} Nd7 {[%emt 0:00:06]} 37. Bc2 {[%emt 0:00:54]} Qg6 {[%emt 0:00:37]} 38. Qe1 {[%emt 0:02:06]} Ne8 {[%emt 0:01:12]} 39. Bd1 {[%emt 0:01:01]} Kg7 {[%emt 0:00:29]} 40. Kf1 {[%emt 0:01:02]} h5 {[%emt 0:00:35]} 41. Bg1 {[%emt 0:00:30]} Kf8 {[%emt 0:00:28]} 42. Bc2 {[%emt 0:00:26]} Bg7 {[%emt 0:01:55]} 43. Bd1 {[%emt 0:00:50]} Bh6 {[%emt 0:00:08]} 44. Rb2 {[%emt 0:00:13]} Nef6 {[%emt 0:00:17]} 45. Qe2 {[%emt 0:00:35]} g4 {[%emt 0:00:52]} 46. hxg4 {[%emt 0:00:36]} hxg4 {[%emt 0:00:08]} 47. Bc2 {[%emt 0:01:25]} g3 {[%emt 0:01:56]} 48. Ke1 {[%emt 0:00:41]} Bg5 {[%emt 0:00:25]} 49. Kd2 {[%emt 0:00:31]} Rh8 {[%emt 0:01:07]} 50. Kc3 {[%emt 0:00:22]} Kf7 {[%emt 0:01:38]} 51. Kb4 {[%emt 0:00:49]} Nb8 {[%emt 0:01:05]} 52. Bb3 {[%emt 0:00:51]} Rh1 {[%emt 0:00:33]} 53. Rd1 {[%emt 0:00:33]} Nxc6+ {[%emt 0:01:34]} 54. dxc6 {[%emt 0:00:06]} Ke7 {[%emt 0:00:06]} 55. Ka4 {[%emt 0:00:43]} Ne8 {[%emt 0:00:50]} 56. Rbd2 {[%emt 0:01:00]} Ng7 {[%emt 0:00:43]} 57. c5 {[%emt 0:00:31]} bxc5 {[%emt 0:00:30]} 58. Bxc5 {[%emt 0:00:14]} Rxd1 {[%emt 0:01:34]} 59. Qxd1 {[%emt 0:00:06]} Ne6 {[%emt 0:01:35]} 60. Ba3 {[%emt 0:00:39]} Nd4 {[%emt 0:00:48]} 61. Bc4 {[%emt 0:00:55]} Bf6 {[%emt 0:01:19]} 62. Qe1 {[%emt 0:01:05]} Bg7 {[%emt 0:04:06]} 63. Rxd4 {[%emt 0:00:59]} exd4 {[%emt 0:00:08]} 64. e5 {[%emt 0:00:13]} Kd8 {[%emt 0:01:54]} 65. exd6 {[%emt 0:00:06]} cxd6 {[%emt 0:00:21]} 66. c7+ {[%emt 0:00:33]} Kd7 {[%emt 0:01:00]} 67. b6 {[%emt 0:01:19]} axb6 {[%emt 0:00:56]} 68. Bb5+ {[%emt 0:00:16]} Kc8 {[%emt 0:00:24]} 69. Qc1 {[%emt 0:00:37]} d5 {[%emt 0:03:13]} 70. Kb3 {[%emt 0:01:03]} Ra7 {[%emt 0:05:45]} 71. Bd7+ {[%emt 0:00:17]} Kxd7 {[%emt 0:00:14]} 72. c8=Q# {[%emt 0:00:12]} 1-0

[Event "48th Indian U15-ch Girls 2023"]
[Site "Jalgaon"]
[Date "2023.12.28"]
[Round "3.6"]
[White "Rajanya Datta"]
[Black "Krishika Garg"]
[Result "1-0"]
[WhiteElo "1688"]
[BlackElo "1529"]
[PlyCount "119"]
[EventDate "2023.12.30"]
[EventType "swiss"]
[EventCountry "IND"]
[TimeControl "5400+30"]

1. e4 {[%emt 0:03:43]} c6 {[%emt 0:03:19]} 2. d4 {[%emt 0:00:24]} d5 {[%emt 0:00:10]} 3. f3 {[%emt 0:00:17]} Nf6 {[%emt 0:00:07]} 4. Nc3 {[%emt 0:00:12]} dxe4 {[%emt 0:00:09]} 5. fxe4 {[%emt 0:00:53]} e5 {[%emt 0:00:32]} 6. Nf3 {[%emt 0:16:13]} exd4 {[%emt 0:01:38]} 7. Qxd4 {[%emt 0:02:31]} Qxd4 {[%emt 0:04:19]} 8. Nxd4 {[%emt 0:00:23]} Bb4 {[%emt 0:04:36]} 9. Bd3 {[%emt 0:01:33]} Bg4 {[%emt 0:08:07]} 10. Bd2 {[%emt 0:09:43]} Nbd7 {[%emt 0:11:10]} 11. h3 {[%emt 0:04:46]} Be6 {[%emt 0:09:23]} 12. a3 {[%emt 0:07:24]} Bd6 {[%emt 0:05:18]} 13. O-O-O {[%emt 0:02:02]} O-O-O {[%emt 0:01:19]} 14. Be3 {[%emt 0:02:44]} Kb8 {[%emt 0:12:21]} 15. Rhe1 {[%emt 0:10:11]} Bc7 {[%emt 0:08:24]} 16. Nxe6 {[%emt 0:08:30]} fxe6 {[%emt 0:00:03]} 17. Bc4 {[%emt 0:00:21]} e5 {[%emt 0:03:48]} 18. Rf1 {[%emt 0:01:40]} Bb6 {[%emt 0:02:07]} 19. Rde1 {[%emt 0:02:56]} Rhe8 {[%emt 0:05:33]} 20. g4 {[%emt 0:08:15]} Bd4 {[%emt 0:06:36]} 21. g5 {[%emt 0:04:03]} Bxc3 {[%emt 0:01:25]} 22. bxc3 {[%emt 0:00:08]} Nxe4 {[%emt 0:00:05]} 23. Bxa7+ {[%emt 0:00:06]} Kxa7 {[%emt 0:00:03]} 24. Rxe4 {[%emt 0:00:06]} Re7 {[%emt 0:03:03]} 25. h4 {[%emt 0:03:36]} Rf8 {[%emt 0:02:43]} 26. Rxf8 {[%emt 0:01:53]} Nxf8 {[%emt 0:00:02]} 27. Bg8 {[%emt 0:00:21]} h6 {[%emt 0:03:23]} 28. Re1 {[%emt 0:00:32]} hxg5 {[%emt 0:02:16]} 29. hxg5 {[%emt 0:00:06]} e4 {[%emt 0:00:34]} 30. Kd2 {[%emt 0:01:23]} Nd7 {[%emt 0:01:32]} 31. Bh7 {[%emt 0:00:20]} Nc5 {[%emt 0:00:18]} 32. Ke3 {[%emt 0:00:04]} Kb6 {[%emt 0:00:45]} 33. Rf1 {[%emt 0:01:40]} Na4 {[%emt 0:00:33]} 34. c4 {[%emt 0:00:53]} Kc5 {[%emt 0:00:51]} 35. g6 {[%emt 0:00:24]} Nb2 {[%emt 0:00:24]} 36. Rf5+ {[%emt 0:01:37]} Kd6 {[%emt 0:00:20]} 37. Bg8 {[%emt 0:00:13]} Na4 {[%emt 0:00:45]} 38. Rf4 {[%emt 0:01:24]} Nc5 {[%emt 0:00:15]} 39. Rh4 {[%emt 0:00:12]} Nd7 {[%emt 0:00:29]} 40. Bf7 {[%emt 0:01:37]} Ne5 {[%emt 0:00:47]} 41. Rf4 {[%emt 0:00:40]} b6 {[%emt 0:00:27]} 42. a4 {[%emt 0:01:43]} Kd7 {[%emt 0:00:34]} 43. c5 {[%emt 0:00:37]} bxc5 {[%emt 0:00:03]} 44. Rxe4 {[%emt 0:00:04]} Kd6 {[%emt 0:00:27]} 45. Kf4 {[%emt 0:00:58]} c4 {[%emt 0:00:23]} 46. a5 {[%emt 0:00:14]} Nd7 {[%emt 0:01:17]} 47. Rxe7 {[%emt 0:00:07]} Kxe7 {[%emt 0:00:02]} 48. Bxc4 {[%emt 0:00:09]} Kd6 {[%emt 0:00:42]} 49. a6 {[%emt 0:00:21]} Kc7 {[%emt 0:00:21]} 50. Kf5 {[%emt 0:00:07]} Nc5 {[%emt 0:00:28]} 51. Ke5 {[%emt 0:00:17]} Nd7+ {[%emt 0:00:57]} 52. Ke6 {[%emt 0:00:19]} Nb6 {[%emt 0:00:16]} 53. Bd3 {[%emt 0:00:15]} c5 {[%emt 0:00:17]} 54. Kf7 {[%emt 0:00:07]} c4 {[%emt 0:00:07]} 55. Be4 {[%emt 0:00:05]} Nd7 {[%emt 0:00:24]} 56. a7 {[%emt 0:00:08]} Nb6 {[%emt 0:00:39]} 57. Kxg7 {[%emt 0:00:10]} c3 {[%emt 0:00:26]} 58. Kh7 {[%emt 0:00:08]} Na8 {[%emt 0:00:27]} 59. g7 {[%emt 0:00:10]} Kb6 {[%emt 0:00:06]} 60. g8=Q {[%emt 0:00:06]} 1-0

[Event "48th Indian U15-ch Girls 2023"]
[Site "Jalgaon"]
[Date "2023.12.28"]
[Round "3.7"]
[White "Nihira Koul"]
[Black "Saparya Ghosh"]
[Result "0-1"]
[WhiteElo "1484"]
[BlackElo "1662"]
[PlyCount "62"]
[EventDate "2023.12.30"]
[EventType "swiss"]
[EventCountry "IND"]
[TimeControl "5400+30"]

1. c4 {[%emt 0:00:32]} Nf6 {[%emt 0:02:45]} 2. g3 {[%emt 0:00:16]} c6 {[%emt 0:00:44]} 3. Bg2 {[%emt 0:00:17]} d5 {[%emt 0:00:08]} 4. cxd5 {[%emt 0:00:47]} cxd5 {[%emt 0:00:08]} 5. d4 {[%emt 0:00:58]} Nc6 {[%emt 0:00:13]} 6. Nc3 {[%emt 0:00:20]} g6 {[%emt 0:01:23]} 7. Nf3 {[%emt 0:00:29]} Bg7 {[%emt 0:00:07]} 8. O-O {[%emt 0:00:33]} O-O {[%emt 0:00:49]} 9. Ne5 {[%emt 0:05:45]} Bf5 {[%emt 0:06:24]} 10. Bf4 {[%emt 0:08:56]} Qa5 {[%emt 0:06:01]} 11. a3 {[%emt 0:02:03]} Ne4 {[%emt 0:01:34]} 12. Nxe4 {[%emt 0:01:18]} dxe4 {[%emt 0:04:36]} 13. Nxc6 {[%emt 0:01:50]} bxc6 {[%emt 0:00:17]} 14. e3 {[%emt 0:00:33]} Rad8 {[%emt 0:02:37]} 15. Rc1 {[%emt 0:01:47]} e5 {[%emt 0:00:40]} 16. g4 {[%emt 0:01:09]} exf4 {[%emt 0:00:47]} 17. gxf5 {[%emt 0:00:10]} Qxf5 {[%emt 0:00:20]} 18. exf4 {[%emt 0:01:29]} Rxd4 {[%emt 0:00:53]} 19. Qe2 {[%emt 0:00:30]} Qxf4 {[%emt 0:00:09]} 20. Qe3 {[%emt 0:01:11]} Qd6 {[%emt 0:05:37]} 21. Qc3 {[%emt 0:04:12]} f5 {[%emt 0:02:31]} 22. Qxc6 {[%emt 0:00:21]} Qf4 {[%emt 0:05:38]} 23. Rc3 {[%emt 0:03:13]} Rd2 {[%emt 0:01:12]} 24. Rh3 {[%emt 0:01:52]} Qe5 {[%emt 0:08:31]} 25. b4 {[%emt 0:01:15]} Re8 {[%emt 0:02:01]} 26. Re1 {[%emt 0:00:53]} Red8 {[%emt 0:02:12]} 27. Rhe3 {[%emt 0:05:20]} Qf4 {[%emt 0:00:54]} 28. Qc4+ {[%emt 0:00:55]} Kh8 {[%emt 0:00:07]} 29. R3e2 {[%emt 0:01:16]} Rxe2 {[%emt 0:00:39]} 30. Qxe2 {[%emt 0:00:08]} Rd2 {[%emt 0:00:05]} 31. Qf1 {[%emt 0:01:06]} Be5 {[%emt 0:00:09]} 0-1

[Event "48th Indian U15-ch Girls 2023"]
[Site "Jalgaon"]
[Date "2023.12.28"]
[Round "3.8"]
[White "Anupam M Sreekumar"]
[Black "Ananya Raman"]
[Result "1/2-1/2"]
[WhiteElo "1642"]
[BlackElo "1505"]
[PlyCount "128"]
[EventDate "2023.12.30"]
[EventType "swiss"]
[EventCountry "IND"]
[TimeControl "5400+30"]

1. Nf3 {[%emt 0:01:01]} Nf6 {[%emt 0:01:42]} 2. g3 {[%emt 0:00:24]} g6 {[%emt 0:00:47]} 3. b3 {[%emt 0:00:23]} Bg7 {[%emt 0:00:32]} 4. Bb2 {[%emt 0:00:18]} O-O {[%emt 0:00:37]} 5. Bg2 {[%emt 0:00:18]} d6 {[%emt 0:00:54]} 6. d4 {[%emt 0:00:57]} Nbd7 {[%emt 0:03:36]} 7. O-O {[%emt 0:01:30]} e5 {[%emt 0:04:06]} 8. c4 {[%emt 0:07:28]} Re8 {[%emt 0:11:13]} 9. Nc3 {[%emt 0:04:49]} e4 {[%emt 0:06:01]} 10. Ng5 {[%emt 0:04:39]} e3 {[%emt 0:01:23]} 11. Nge4 {[%emt 0:20:55]} Nxe4 {[%emt 0:03:57]} 12. Nxe4 {[%emt 0:00:13]} f5 {[%emt 0:03:41]} 13. Nc3 {[%emt 0:00:40]} exf2+ {[%emt 0:03:37]} 14. Rxf2 {[%emt 0:00:50]} Nf6 {[%emt 0:01:39]} 15. h3 {[%emt 0:05:19]} Nh5 {[%emt 0:09:30]} 16. Qd3 {[%emt 0:02:14]} c6 {[%emt 0:12:41]} 17. e4 {[%emt 0:07:00]} Qg5 {[%emt 0:07:34]} 18. Kh2 {[%emt 0:02:41]} c5 {[%emt 0:07:18]} 19. Ne2 {[%emt 0:11:51]} Qe7 {[%emt 0:05:05]} 20. exf5 {[%emt 0:07:31]} Bxf5 {[%emt 0:00:07]} 21. Qd2 {[%emt 0:02:20]} Nf6 {[%emt 0:01:34]} 22. Nc3 {[%emt 0:05:24]} cxd4 {[%emt 0:03:13]} 23. Nd5 {[%emt 0:00:09]} Nxd5 {[%emt 0:03:27]} 24. Bxd5+ {[%emt 0:00:03]} Be6 {[%emt 0:01:59]} 25. Re1 {[%emt 0:04:22]} Be5 {[%emt 0:00:31]} 26. Bxe6+ {[%emt 0:05:53]} Qxe6 {[%emt 0:00:05]} 27. Rfe2 {[%emt 0:00:11]} Qf7 {[%emt 0:04:08]} 28. Bxd4 {[%emt 0:00:28]} Rad8 {[%emt 0:01:01]} 29. Kg2 {[%emt 0:03:36]} b5 {[%emt 0:01:13]} 30. Qd3 {[%emt 0:00:48]} bxc4 {[%emt 0:00:32]} 31. bxc4 {[%emt 0:00:40]} Bxd4 {[%emt 0:01:00]} 32. Qxd4 {[%emt 0:00:54]} Rxe2+ {[%emt 0:00:14]} 33. Rxe2 {[%emt 0:00:32]} Rf8 {[%emt 0:00:31]} 34. Rd2 {[%emt 0:00:24]} Qf3+ {[%emt 0:01:10]} 35. Kh2 {[%emt 0:00:02]} Qc6 {[%emt 0:00:45]} 36. Re2 {[%emt 0:00:42]} Rf7 {[%emt 0:00:29]} 37. Rb2 {[%emt 0:00:43]} Qc7 {[%emt 0:00:34]} 38. Qd5 {[%emt 0:00:21]} Kg7 {[%emt 0:00:15]} 39. Kg2 {[%emt 0:00:35]} Qe7 {[%emt 0:00:29]} 40. Qd4+ {[%emt 0:00:21]} Qf6 {[%emt 0:00:30]} 41. Qxf6+ {[%emt 0:00:17]} Kxf6 {[%emt 0:00:20]} 42. Rf2+ {[%emt 0:00:06]} Ke6 {[%emt 0:00:05]} 43. Rxf7 {[%emt 0:00:05]} Kxf7 {[%emt 0:00:03]} 44. Kf3 {[%emt 0:00:05]} Ke6 {[%emt 0:01:41]} 45. Ke4 {[%emt 0:00:05]} h6 {[%emt 0:00:32]} 46. g4 {[%emt 0:00:57]} Ke7 {[%emt 0:00:34]} 47. a3 {[%emt 0:01:06]} Ke6 {[%emt 0:00:26]} 48. Kd4 {[%emt 0:00:16]} Ke7 {[%emt 0:00:27]} 49. a4 {[%emt 0:00:36]} Ke6 {[%emt 0:00:30]} 50. Ke4 {[%emt 0:00:05]} Ke7 {[%emt 0:00:15]} 51. a5 {[%emt 0:01:11]} Ke6 {[%emt 0:00:23]} 52. Kd4 {[%emt 0:00:42]} Ke7 {[%emt 0:00:08]} 53. Kd5 {[%emt 0:00:32]} Kd7 {[%emt 0:00:04]} 54. h4 {[%emt 0:00:06]} a6 {[%emt 0:01:10]} 55. Ke4 {[%emt 0:00:54]} Kc6 {[%emt 0:01:07]} 56. Kd4 {[%emt 0:00:15]} Kc7 {[%emt 0:00:04]} 57. Kd5 {[%emt 0:00:38]} Kd7 {[%emt 0:00:07]} 58. g5 {[%emt 0:01:23]} h5 {[%emt 0:00:09]} 59. Ke4 {[%emt 0:00:34]} Kc6 {[%emt 0:00:48]} 60. Kd4 {[%emt 0:00:06]} Kc7 {[%emt 0:00:10]} 61. Kd5 {[%emt 0:00:52]} Kd7 {[%emt 0:00:04]} 62. c5 {[%emt 0:00:34]} dxc5 {[%emt 0:00:05]} 63. Kxc5 {[%emt 0:00:05]} Kc7 {[%emt 0:00:04]} 64. Kd5 {[%emt 0:00:05]} Kd7 {[%emt 0:00:40]} 1/2-1/2

[Event "48th Indian U15-ch Girls 2023"]
[Site "Jalgaon"]
[Date "2023.12.28"]
[Round "3.9"]
[White "Bhat Sannidhi Ramakrishna"]
[Black "Asmita Avijit Ray"]
[Result "1-0"]
[WhiteElo "1637"]
[BlackElo "1470"]
[PlyCount "51"]
[EventDate "2023.12.30"]
[EventType "swiss"]
[EventCountry "IND"]
[TimeControl "5400+30"]

1. d4 {[%emt 0:00:07]} d5 {[%emt 0:00:08]} 2. Bf4 {[%emt 0:00:23]} Nf6 {[%emt 0:00:14]} 3. e3 {[%emt 0:00:15]} c5 {[%emt 0:00:07]} 4. Nd2 {[%emt 0:00:15]} Nc6 {[%emt 0:00:21]} 5. c3 {[%emt 0:00:07]} Bf5 {[%emt 0:02:12]} 6. Ngf3 {[%emt 0:00:24]} Qb6 {[%emt 0:00:25]} 7. Nh4 {[%emt 0:00:31]} Bg6 {[%emt 0:01:00]} 8. Nxg6 {[%emt 0:05:58]} hxg6 {[%emt 0:00:10]} 9. Qb3 {[%emt 0:00:22]} c4 {[%emt 0:00:33]} 10. Qc2 {[%emt 0:00:30]} Rc8 {[%emt 0:11:55]} 11. Rb1 {[%emt 0:07:10]} Qa5 {[%emt 0:21:42]} 12. b4 {[%emt 0:20:03]} Qa3 {[%emt 0:11:35]} 13. Bxc4 {[%emt 0:15:23]} e6 {[%emt 0:26:18]} 14. Bb5 {[%emt 0:07:45]} Nd7 {[%emt 0:01:27]} 15. Rb3 {[%emt 0:00:50]} Nxb4 {[%emt 0:01:11]} 16. Qb1 {[%emt 0:00:39]} Qxa2 {[%emt 0:01:11]} 17. Rxb4 {[%emt 0:01:19]} Qxb1+ {[%emt 0:01:59]} 18. Rxb1 {[%emt 0:00:05]} Rxc3 {[%emt 0:01:41]} 19. Bxd7+ {[%emt 0:00:20]} Kxd7 {[%emt 0:00:06]} 20. Rxb7+ {[%emt 0:00:03]} Ke8 {[%emt 0:00:34]} 21. Rb8+ {[%emt 0:00:42]} Ke7 {[%emt 0:01:02]} 22. O-O {[%emt 0:00:22]} a5 {[%emt 0:01:36]} 23. Ra1 {[%emt 0:01:09]} Rh5 {[%emt 0:02:48]} 24. g4 {[%emt 0:00:18]} Rh7 {[%emt 0:00:12]} 25. g5 {[%emt 0:00:30]} Rd3 {[%emt 0:00:35]} 26. Rxa5 {[%emt 0:00:11]} 1-0

[Event "48th Indian U15-ch Girls 2023"]
[Site "Jalgaon"]
[Date "2023.12.28"]
[Round "3.10"]
[White "Chaarvi Choudhury"]
[Black "Nivedita V C"]
[Result "0-1"]
[WhiteElo "1468"]
[BlackElo "1638"]
[PlyCount "66"]
[EventDate "2023.12.30"]
[EventType "swiss"]
[EventCountry "IND"]
[TimeControl "5400+30"]

1. e4 {[%emt 0:00:30]} e5 {[%emt 0:00:30]} 2. Nf3 {[%emt 0:00:30]} Nc6 {[%emt 0:00:30]} 3. Bb5 {[%emt 0:00:30]} f5 {[%emt 0:00:30]} 4. d3 {[%emt 0:00:30]} fxe4 {[%emt 0:00:30]} 5. dxe4 {[%emt 0:00:30]} d6 {[%emt 0:00:30]} 6. Nxe5 {[%emt 0:00:30]} dxe5 {[%emt 0:00:30]} 7. Bxc6+ {[%emt 0:00:30]} bxc6 {[%emt 0:00:30]} 8. Qh5+ {[%emt 0:00:30]} Ke7 {[%emt 0:00:30]} 9. Qxe5+ {[%emt 0:00:30]} Be6 {[%emt 0:00:30]} 10. Bf4 {[%emt 0:00:30]} Nf6 {[%emt 0:00:30]} 11. Nd2 {[%emt 0:00:30]} Kf7 {[%emt 0:00:30]} 12. Qxc7+ {[%emt 0:00:30]} Qxc7 {[%emt 0:00:30]} 13. Bxc7 {[%emt 0:00:30]} Bc5 {[%emt 0:00:30]} 14. f3 {[%emt 0:00:30]} Rhc8 {[%emt 0:00:30]} 15. Bg3 {[%emt 0:00:30]} Rd8 {[%emt 0:00:30]} 16. Rf1 {[%emt 0:00:30]} Rd7 {[%emt 0:00:30]} 17. Bf2 {[%emt 0:00:30]} Bb6 {[%emt 0:00:30]} 18. a3 {[%emt 0:00:30]} Rad8 {[%emt 0:00:30]} 19. Bxb6 {[%emt 0:00:30]} axb6 {[%emt 0:00:30]} 20. Rf2 {[%emt 0:00:30]} c5 {[%emt 0:00:30]} 21. Re2 {[%emt 0:00:30]} b5 {[%emt 0:00:30]} 22. f4 {[%emt 0:00:30]} Bg4 {[%emt 0:00:30]} 23. Rf2 {[%emt 0:00:30]} Nxe4 {[%emt 0:00:30]} 24. Nf3 {[%emt 0:00:30]} Nxf2 {[%emt 0:00:30]} 25. Ne5+ {[%emt 0:00:30]} Kf6 {[%emt 0:00:30]} 26. Nxd7+ {[%emt 0:00:30]} Rxd7 {[%emt 0:00:30]} 27. Kxf2 {[%emt 0:00:30]} Rd2+ {[%emt 0:00:30]} 28. Kg3 {[%emt 0:00:30]} Be6 {[%emt 0:00:30]} 29. Re1 {[%emt 0:00:30]} Bd5 {[%emt 0:00:30]} 30. b3 {[%emt 0:00:30]} Rxg2+ {[%emt 0:00:30]} 31. Kh3 {[%emt 0:00:30]} Rg6 {[%emt 0:00:30]} 32. c4 {[%emt 0:00:30]} Be6+ {[%emt 0:00:30]} 33. Kh4 {[%emt 0:00:30]} Rg4+ {[%emt 0:00:30]} 0-1

[Event "48th Indian U15-ch Girls 2023"]
[Site "Jalgaon"]
[Date "2023.12.29"]
[Round "4.1"]
[White "Mrittika Mallick"]
[Black "Bhat Sannidhi Ramakrishna"]
[Result "0-1"]
[WhiteElo "1970"]
[BlackElo "1637"]
[PlyCount "110"]
[EventDate "2023.12.30"]
[EventType "swiss"]
[EventCountry "IND"]
[TimeControl "5400+30"]

1. e4 {[%emt 0:01:00]} d5 {[%emt 0:00:21]} 2. exd5 {[%emt 0:00:11]} Qxd5 {[%emt 0:00:09]} 3. Nf3 {[%emt 0:00:11]} Bg4 {[%emt 0:00:26]} 4. Be2 {[%emt 0:00:23]} Nc6 {[%emt 0:00:35]} 5. h3 {[%emt 0:00:23]} Bxf3 {[%emt 0:02:26]} 6. Bxf3 {[%emt 0:00:08]} Qe6+ {[%emt 0:06:14]} 7. Qe2 {[%emt 0:00:24]} Qxe2+ {[%emt 0:00:24]} 8. Bxe2 {[%emt 0:00:08]} Nd4 {[%emt 0:01:50]} 9. Bd1 {[%emt 0:01:13]} e5 {[%emt 0:00:37]} 10. c3 {[%emt 0:02:04]} Ne6 {[%emt 0:05:06]} 11. d3 {[%emt 0:07:32]} Nc5 {[%emt 0:06:36]} 12. Ke2 {[%emt 0:03:17]} O-O-O {[%emt 0:02:06]} 13. Bc2 {[%emt 0:00:26]} Nf6 {[%emt 0:06:27]} 14. b4 {[%emt 0:06:07]} Ne6 {[%emt 0:02:04]} 15. g3 {[%emt 0:04:41]} g6 {[%emt 0:12:10]} 16. Nd2 {[%emt 0:05:31]} Bg7 {[%emt 0:04:05]} 17. Bb2 {[%emt 0:09:45]} Nd5 {[%emt 0:06:16]} 18. Nc4 {[%emt 0:02:40]} Rhe8 {[%emt 0:05:38]} 19. a4 {[%emt 0:05:22]} f5 {[%emt 0:03:03]} 20. Rhe1 {[%emt 0:03:30]} Ng5 {[%emt 0:06:09]} 21. h4 {[%emt 0:18:56]} e4 {[%emt 0:10:45]} 22. d4 {[%emt 0:00:25]} Nf3 {[%emt 0:00:35]} 23. Red1 {[%emt 0:01:11]} f4 {[%emt 0:01:50]} 24. b5 {[%emt 0:03:13]} Nh2 {[%emt 0:02:21]} 25. Ne5 {[%emt 0:12:43]} f3+ {[%emt 0:01:02]} 26. Ke1 {[%emt 0:00:16]} e3 {[%emt 0:08:34]} 27. c4 {[%emt 0:03:34]} Bxe5 {[%emt 0:00:49]} 28. dxe5 {[%emt 0:01:14]} Nb4 {[%emt 0:01:49]} 29. Be4 {[%emt 0:00:28]} e2 {[%emt 0:01:06]} 30. Rd5 {[%emt 0:05:09]} c6 {[%emt 0:01:27]} 31. Rxd8+ {[%emt 0:01:05]} Rxd8 {[%emt 0:00:06]} 32. e6 {[%emt 0:00:20]} Nd3+ {[%emt 0:00:48]} 33. Bxd3 {[%emt 0:00:09]} Rxd3 {[%emt 0:00:01]} 34. Bf6 {[%emt 0:00:25]} Ng4 {[%emt 0:01:03]} 35. Bg7 {[%emt 0:00:47]} Nxf2 {[%emt 0:00:47]} 36. Kxf2 {[%emt 0:00:43]} Rd1 {[%emt 0:00:04]} 37. Bc3 {[%emt 0:00:17]} e1=Q+ {[%emt 0:00:08]} 38. Bxe1 {[%emt 0:00:05]} Rxa1 {[%emt 0:00:03]} 39. a5 {[%emt 0:00:48]} cxb5 {[%emt 0:00:36]} 40. cxb5 {[%emt 0:00:01]} Rb1 {[%emt 0:00:22]} 41. g4 {[%emt 0:02:18]} Rxb5 {[%emt 0:00:53]} 42. Kxf3 {[%emt 0:00:07]} Re5 {[%emt 0:00:08]} 43. Bc3 {[%emt 0:00:08]} Rxe6 {[%emt 0:00:03]} 44. Kf4 {[%emt 0:00:06]} b6 {[%emt 0:01:44]} 45. axb6 {[%emt 0:00:20]} axb6 {[%emt 0:00:11]} 46. Kg5 {[%emt 0:00:07]} b5 {[%emt 0:00:31]} 47. h5 {[%emt 0:01:09]} gxh5 {[%emt 0:00:21]} 48. Kxh5 {[%emt 0:00:02]} Kd7 {[%emt 0:00:35]} 49. g5 {[%emt 0:00:07]} Rg6 {[%emt 0:00:24]} 50. Bb4 {[%emt 0:00:33]} Ke6 {[%emt 0:00:07]} 51. Bd2 {[%emt 0:00:23]} Kd5 {[%emt 0:00:08]} 52. Kg4 {[%emt 0:00:10]} h6 {[%emt 0:00:08]} 53. Kh5 {[%emt 0:00:08]} Rxg5+ {[%emt 0:00:04]} 54. Bxg5 {[%emt 0:00:05]} hxg5 {[%emt 0:00:04]} 55. Kxg5 {[%emt 0:00:07]} b4 {[%emt 0:00:05]} 0-1